Cogmind - Beta 17.1 @@@ ROGUE MODE // 2026.09.13 @ 13:29:01 Player: Nathanio Result: Destroyed by Y-54 Guardian with Flak Gun Performance ------------- Evolutions (4) 2000 Regions Visited (6) 1200 Robots Destroyed (33) 165 Value Destroyed (749) 749 Prototype IDs (1) 20 Alien Tech Used (0) 0 Bonus (500) 500 TOTAL SCORE: 4634 Bonus ------- Entered DSFs 500 Cogmind --------- Core Integrity 0/850 Matter 41/300 Energy 100/100 System Corruption 5% Temperature Cool (12) Movement Core (50) Location -6/Factory Parts ------- > --- POWER (2) -------- (None) > --- PROPULSION (5) --- (None) > --- UTILITY (6) ------ (None) > --- WEAPON (2) ------- (None) > --- INVENTORY (5) ---- Weight Redist. System Reaction Control System Long-range Missile Launcher Peak State ------------ > --- POWER ------------ Micro Nuclear Core > --- PROPULSION ------- Cesium-ion Thruster Cesium-ion Thruster Cesium-ion Thruster Cesium-ion Thruster > --- UTILITY ---------- Structural Scanner Propulsion Shielding Hardened Light Armor Plating Hacking Suite > --- WEAPON ----------- Remote Datajack Scythe > --- INVENTORY -------- Weight Redist. System Reaction Control System Hacking Suite System Shield Scythe [Rating: 31] Favorites ----------- Power Light Ion Engine Engine Light Ion Engine Power Core Micro Nuclear Core Propulsion Aluminum Leg Treads Improved Treads Leg Aluminum Leg Wheel Armored Huge Wheel Flight Unit Cesium-ion Thruster Utility Hacking Suite Device Structural Scanner Storage Medium Storage Unit Processor Transport Network Coupler Hackware Hacking Suite Protection Hardened Light Armor Plating Weapon Assault Rifle Ballistic Gun Assault Rifle Launcher Long-range Missile Launcher Special Weapon Remote Datajack Slashing Weapon Scythe Special Melee Weapon Datajack Build | -11 -10 -9 -8 -7 -7 -6 ------- Run | Yrd Mat Mat Mat Fac DSF Fac Slots Evolved 8 | . . 2 2 2 . 2 Power 1 | . . . . 1 . . Propulsion 3 | . . 1 1 . . 1 Utility 4 | . . 1 1 1 . 1 Weapon . | . . . . . . . Parts Attached 53 | 5 13 10 10 3 5 7 Power 6 | 1 2 . 1 1 . 1 Engine 4 | 1 2 . . 1 . . Core 2 | . . . 1 . . 1 Reactor . | . . . . . . . Propulsion 22 | 2 5 5 1 . 5 4 Treads 4 | . 1 . . . 2 1 Leg 4 | 2 2 . . . . . Wheel 3 | . . . . . 3 . Hover . | . . . . . . . Flight 11 | . 2 5 1 . . 3 Utility 13 | . 4 3 3 2 . 1 Device 3 | . . 1 1 . . 1 Storage 2 | . 2 . . . . . Processor 2 | . 2 . . . . . Hackware 3 | . . 1 1 1 . . Protection 3 | . . 1 1 1 . . Artifact . | . . . . . . . Weapon 12 | 2 2 2 5 . . 1 Energy Gun . | . . . . . . . Energy Cannon . | . . . . . . . Ballistic Gun 6 | 2 2 2 . . . . Ballistic Cannon . | . . . . . . . Launcher 1 | . . . . . . 1 Special Weapon 1 | . . . 1 . . . Impact Weapon . | . . . . . . . Slashing Weapon 3 | . . . 3 . . . Piercing Weapon . | . . . . . . . Special Melee Weapon 1 | . . . 1 . . . Unidentified Prototypes . | . . . . . . . Parts Lost 31 | . 5 1 6 . 6 13 Power 5 | . 1 . 1 . 2 1 Propulsion 16 | . 3 1 4 . 3 5 Utility 6 | . . . . . 1 5 Weapon 4 | . 1 . 1 . . 2 Highest Loss Streak 6 | . 2 1 3 . 5 6 To Critical Strikes . | . . . . . . . Average Backups 3 | 1 4 4 4 2 2 2 Power . | . 1 . . . . . Propulsion . | . . 1 . . . . Utility 2 | . 1 3 2 2 2 2 Weapon . | . . . . . . . Tool/Special . | . . . . . . . Unused Backups 12 | . 4 2 4 . . 2 Power 3 | . 2 . 1 . . . Propulsion 2 | . . 1 1 . . . Utility 6 | . 2 1 2 . . 1 Weapon 1 | . . . . . . 1 Tool/Special . | . . . . . . . Average Slot Usage (%) 80 | . 93 97 87 56 68 32 Engine 9 | . 13 10 4 4 5 . Core 1 | . . . 4 7 4 . Treads 1 | . . . . . 9 1 Leg 11 | . 24 . . . . . Flight 9 | . 1 31 27 . . 2 Device 4 | . . 9 9 13 7 8 Storage 5 | . 12 . . . . . Processor 8 | . 11 20 . . . . Hackware 5 | . . . 11 16 23 12 Protection 2 | . . . 13 5 6 . Ballistic Gun 16 | . 27 22 6 . . . Slashing Weapon 1 | . . . 5 7 7 2 Peak Build Rating 31 | 5 9 19 31 23 27 27 Average Rating 13 | 3 7 12 25 20 23 17 On Entrance 12 | . 5 7 19 15 23 21 Avg Prop Armor Cover (%) 21 | . . . . . 21 . Naked Turns 1 | . . . . . . 1 Heaviest Build 24 | 6 18 11 18 24 24 10 Greatest Support 46 | 20 20 15 21 9 46 30 Greatest Overweight (x) 7 | . 5 . 1 7 7 1 Average Overweight (x) . | . . . . 1 . . Largest Inventory Capacity 10 | 5 10 5 5 5 5 5 Average Capacity 6 | 5 9 5 5 5 5 5 Most Carried 7 | 2 7 5 5 3 2 4 Average Carried 3 | 1 4 4 4 2 2 2 Final Capacity 5 | 5 5 5 5 5 5 5 Final Carried 5 | 2 5 4 4 2 2 3 Class Distribution -------------------- 65% | Mutant 18% | Hacker-Mutant 8% | Scavenger-Sprinter 5% | Sprinter 3% | Hacker-Sprinter Dominant Class ---------------- Mutant | -10/Materials Mutant | -9/Materials Sprinter | -8/Materials Sprinter | -7/Factory Hacker-Mutant | -7/DSF Mutant | -6/Factory Resources | -11 -10 -9 -8 -7 -7 -6 ----------- Run | Yrd Mat Mat Mat Fac DSF Fac Matter Collected 1029 | 195 551 171 55 . . 57 Remotely . | . . . . . . . Salvage Created 954 | . 557 267 55 . . 75 Parts 63 | . 28 21 1 . . 13 Haulers Intercepted 3 | . 1 2 . . . . Recyclers Shooed . | . . . . . . . Parts Field Recycled . | . . . . . . . Retrieved Matter . | . . . . . . . Parts Self-Destructed . | . . . . . . . Prevented . | . . . . . . . Parts Restored . | . . . . . . . Kills | -11 -10 -9 -8 -7 -7 -6 ------- Run | Yrd Mat Mat Mat Fac DSF Fac Combat Hostiles Destroyed 19 | . 12 5 1 . . 1 Melee 2 | . . . 1 . . 1 Guns 17 | . 12 5 . . . . Classes Destroyed 8 | . 3 3 . . . 2 Worker 3 | . . . . . . 3 Builder 4 | . . . . . . 4 Hauler 3 | . 1 2 . . . . Operator 2 | . . 2 . . . . Watcher 2 | . 1 1 . . . . Swarmer 4 | . . 4 . . . . Grunt 14 | . 12 . 1 . . 1 Sentry 1 | . . 1 . . . . Best Kill Streak 7 | . 4 6 1 . . 7 Combat Bots Only 4 | . 3 4 1 . . 1 Max Kills in Single Turn 6 | . 1 1 1 . . 6 Gunslinging . | . . . . . . . Exploded . | . . . . . . . Melee 1 | . . . 1 . . 1 Uniques/NPCs Destroyed . | . . . . . . . Combat | -11 -10 -9 -8 -7 -7 -6 -------- Run | Yrd Mat Mat Mat Fac DSF Fac Hostile Shots Fired 458 | . 84 42 58 . 111 163 Missed 161 | . 23 22 22 . 42 52 Hits 297 | . 61 20 36 . 69 111 Projectile 297 | . 61 20 36 . 69 111 Critical Strikes 7 | . . . 2 . 2 3 Actively Blocked 1 | . . . 1 . . . Damage Taken 4131 | . 719 182 575 . 1122 1533 Core 1301 | . 96 40 46 . 266 853 Absorbed by Shields . | . . . . . . . Redirected to Shielding 38 | . . . 38 . . . Regen/Repaired (Parts) 38 | . . . 38 . . . Core Remaining (%) 80 | 100 61 90 91 . 62 . Volleys Fired 121 | . 60 50 8 . . 3 Largest 2 | . 2 2 2 . . 1 Hottest 43 | . 43 43 43 . . 43 Shots Fired 232 | . 119 100 10 . . 3 Gun 223 | . 119 100 4 . . . Cannon . | . . . . . . . Launcher 3 | . . . . . . 3 Special 6 | . . . 6 . . . Kinetic 223 | . 119 100 4 . . . Thermal . | . . . . . . . Explosive 3 | . . . . . . 3 Electromagnetic . | . . . . . . . Robot Hit Streak 14 | . 14 5 1 . . . Robot Miss Streak 4 | . 4 4 3 . . 3 Penetration Max . | . . . . . . . Secondary Targets 3 | . 1 2 . . . . Max Gunslinging Chain 1 | . 1 1 . . . . Shots Hit Robots 132 | . 77 44 7 . . 4 Core Hits 60 | . 27 17 1 . . 15 Critical Kills . | . . . . . . . Critical Parts Destroyed 1 | . . 1 . . . . Critical Strikes 3 | . . 1 1 . . 1 Destroy 1 | . . 1 . . . . Sever 2 | . . . 1 . . 1 Melee Attacks 18 | . . . 10 . . 8 Impact . | . . . . . . . Slashing 17 | . . . 9 . . 8 Piercing . | . . . . . . . Sneak Attacks 1 | . . . 1 . . . Combat Hostiles . | . . . . . . . Follow-up Attacks . | . . . . . . . Damage Inflicted 2687 | . 1016 493 132 . . 1046 Guns 1521 | . 1016 493 12 . . . Cannons . | . . . . . . . Explosions 893 | . . . . . . 893 Melee 244 | . . . 120 . . 124 Ramming 29 | . . . . . . 29 Kinetic 1521 | . 1016 493 12 . . . Thermal 399 | . . . . . . 399 Explosive 494 | . . . . . . 494 Electromagnetic . | . . . . . . . Impact . | . . . . . . . Slashing 244 | . . . 120 . . 124 Piercing . | . . . . . . . Highest Corruption 5 | . . 1 . . . 5 Average Corruption 2 | . . 1 . . . 4 Corruption Purged . | . . . . . . . Corruption Blocked . | . . . . . . . Effects 3 | . . 1 . . . 2 Matter Fused 3 | . . 1 . . . 2 Overload Shots . | . . . . . . . Overflow Damage 133 | . . . . . . 133 Projectiles . | . . . . . . . Explosions 133 | . . . . . . 133 Melee . | . . . . . . . Knockbacks . | . . . . . . . Impact . | . . . . . . . Kinetic . | . . . . . . . Secondary . | . . . . . . . Self-Inflicted Damage 37 | . . . . . . 37 Shots 1 | . . . . . . 1 Rammed 12 | . . . . . . 12 Targets Rammed 12 | . . . . . . 12 Kicked . | . . . . . . . Crushed . | . . . . . . . Highest Temperature 24 | . 17 11 24 . . . Average Temperature 5 | . 5 4 9 . . . Received Heat Transfer 1092 | . 396 . 342 . 6 348 Siege Activations . | . . . . . . . Martial Activations . | . . . . . . . Shielding Activations . | . . . . . . . Robots Disrupted . | . . . . . . . Combat Hostiles . | . . . . . . . Robots Corrupted . | . . . . . . . Combat Hostiles . | . . . . . . . Parts Fried . | . . . . . . . Impact Corruptions . | . . . . . . . Robots Melted . | . . . . . . . Combat Hostiles . | . . . . . . . Parts Melted . | . . . . . . . Heat Transferred 300 | . . . . . . 300 Parts Sabotaged . | . . . . . . . Parts Stolen . | . . . . . . . Parts Stripped . | . . . . . . . Power Chain Reactions . | . . . . . . . Alert | -11 -10 -9 -8 -7 -7 -6 ------- Run | Yrd Mat Mat Mat Fac DSF Fac Maximum Alert Level 1 | . . . 1 . . . Low Security (%) 98 | 100 100 100 90 100 100 100 Level 1 1 | . . . 9 . . . Level 2 . | . . . . . . . Level 3 . | . . . . . . . Level 4 . | . . . . . . . Level 5 . | . . . . . . . High Security . | . . . . . . . Max Security . | . . . . . . . Peak Influence 215 | . 93 106 215 93 68 83 Initial 93 | . . 9 40 93 58 14 Average 46 | . 33 69 96 88 55 24 Influence Increases 1153 | . 324 247 335 . 30 217 Destroy 0b10 Robot/C 380 | . 240 100 20 . . 20 Destroy 0b10 Robot/NC 70 | . 10 25 . . . 35 Destroy Leader 80 | . 44 26 10 . . . Successful Hack 16 | . 13 3 . . . . Disable Machine 60 | . . 30 . . . 30 Destroy Structure 67 | . 2 18 5 . . 42 Partial Spotted 75 | . . 45 30 . . . Lose Combat Pursuer 405 | . 15 . 270 . 30 90 Influence Decreases 1126 | . 300 175 226 122 85 218 Entered New Map 222 | . . 15 56 112 25 14 Time Decay 634 | . 260 150 110 10 . 104 Lost Part 270 | . 40 10 60 . 60 100 Squads Dispatched 16 | . 2 4 5 . 1 4 Investigation 7 | . 2 2 1 . . 2 Extermination . | . . . . . . . Reinforcement 8 | . . 2 4 . 1 1 Assault . | . . . . . . . Garrison 1 | . . . . . . 1 Intercept . | . . . . . . . Searches Triggered . | . . . . . . . Construction Impeded 1 | . . . . . . 1 Haulers Reinforced . | . . . . . . . Active Scanning Responses . | . . . . . . . Cargo Convoy Interrupts . | . . . . . . . Stealth | -11 -10 -9 -8 -7 -7 -6 --------- Run | Yrd Mat Mat Mat Fac DSF Fac Distress Signals 3 | . . 1 1 . . 1 Communications Jammed . | . . . . . . . Distress Signals . | . . . . . . . Times Spotted 84 | . 15 14 32 . 10 13 Peak Tracking Total 13 | . 3 4 13 . 9 7 Tactical Retreats 11 | . 1 . 5 . 2 3 Traps | -11 -10 -9 -8 -7 -7 -6 ------- Run | Yrd Mat Mat Mat Fac DSF Fac Traps Triggered 4 | . 2 1 . . 1 . Indirectly . | . . . . . . . Trap Hack Attempts . | . . . . . . . Triggered . | . . . . . . . Disarmed . | . . . . . . . Reprogrammed . | . . . . . . . Reused . | . . . . . . . Traps Extracted . | . . . . . . . Installed . | . . . . . . . Triggered . | . . . . . . . Machines | -11 -10 -9 -8 -7 -7 -6 ---------- Run | Yrd Mat Mat Mat Fac DSF Fac Machines Disabled 5 | . 1 2 . . . 2 Max in Single Turn 2 | . 1 2 . . . 2 Machines Repaired . | . . . . . . . Machines Dismantled . | . . . . . . . Machines Sabotaged . | . . . . . . . Overloaded Fab Kills . | . . . . . . . Hacking | -11 -10 -9 -8 -7 -7 -6 --------- Run | Yrd Mat Mat Mat Fac DSF Fac Machines Accessed 11 | . 2 2 4 1 . 2 Terminals 7 | . 1 1 3 1 . 1 Fabricators 1 | . . . . . . 1 Repair Stations 1 | . . . 1 . . . Recycling Units 1 | . 1 . . . . . Scanalyzers 1 | . . 1 . . . . Garrison Access . | . . . . . . . Total Hacks 41 | . 8 13 15 1 . 4 Successful 26 | . 5 8 10 1 . 2 Failed 14 | . 3 4 5 . . 2 Catastrophic 4 | . 1 1 1 . . 1 Database Lockouts 1 | . . 1 . . . . Manual 1 | . . . 1 . . . Terminals 24 | . 5 3 13 1 . 2 Fabricators 2 | . . . . . . 2 Repair Stations 2 | . . . 2 . . . Recycling Units 3 | . 3 . . . . . Scanalyzers 10 | . . 10 . . . . Garrison Access . | . . . . . . . Terminal Hacks 13 | . 3 1 8 1 . . Record 8 | . 3 . 5 . . . Open DSF 1 | . . . . 1 . . Alert Level 1 | . . . 1 . . . Dispatch Records 1 | . . 1 . . . . Transport Status 1 | . . . 1 . . . Zone Layout 1 | . . . 1 . . . Fabricator Hacks 2 | . . . . . . 2 Load Schematic 1 | . . . . . . 1 Build 1 | . . . . . . 1 Repair Station Hacks 2 | . . . 2 . . . Scan Component 1 | . . . 1 . . . Repair 1 | . . . 1 . . . Recycling Unit Hacks 2 | . 2 . . . . . Report Inventory 1 | . 1 . . . . . Retrieve Components 1 | . 1 . . . . . Scanalyzer 7 | . . 7 . . . . Insert Component 3 | . . 3 . . . . Analyze 3 | . . 3 . . . . Retrieve Study 1 | . . 1 . . . . Garrison Access Hacks . | . . . . . . . Unauthorized Hacks . | . . . . . . . Terminals . | . . . . . . . Fabricators . | . . . . . . . Repair Stations . | . . . . . . . Recycling Units . | . . . . . . . Scanalyzers . | . . . . . . . Garrison Access . | . . . . . . . Data Cores Recovered . | . . . . . . . Used . | . . . . . . . Hacking Detections 10 | . 2 2 4 . . 2 Full Trace Events 8 | . 2 2 2 . . 2 Feedback Events . | . . . . . . . Feedback Blocked . | . . . . . . . Robot Schematics Acquired . | . . . . . . . Robots Built . | . . . . . . . Authchips . | . . . . . . . Time . | . . . . . . . Total Robot Build Rating . | . . . . . . . Part Schematics Acquired 3 | . . 3 . . . . Parts Built 2 | . . . . . . 2 Authchips . | . . . . . . . Time 73 | . . . . . . 73 Total Part Build Rating 6 | . . . . . . 6 Part Studies Acquired . | . . . . . . . Parts Repaired 1 | . . . 1 . . . Time 26 | . . . 26 . . . Parts Recycled . | . . . . . . . Recycled Matter . | . . . . . . . Retrieved Matter . | . . . . . . . Retrieved Components 10 | . 10 . . . . . Parts Scanalyzed 3 | . . 3 . . . . Part Schematics Acquired 3 | . . 3 . . . . Parts Damaged . | . . . . . . . Bothacking | -11 -10 -9 -8 -7 -7 -6 ------------ Run | Yrd Mat Mat Mat Fac DSF Fac Used RIF Installer . | . . . . . . . Robots Hacked 1 | . . . 1 . . . Non-combat 1 | . . . 1 . . . Combat . | . . . . . . . Robot Hacks Applied 1 | . . . 1 . . . parse_system 1 | . . . 1 . . . Relay Couplers Released . | . . . . . . . Fabnet Peak Effective % . | . . . . . . . Robots Rewired . | . . . . . . . Allies Hacked . | . . . . . . . Hacks Repelled . | . . . . . . . Allies | -11 -10 -9 -8 -7 -7 -6 -------- Run | Yrd Mat Mat Mat Fac DSF Fac Total Allies . | . . . . . . . Largest Group . | . . . . . . . Highest-Rated Group . | . . . . . . . Highest-Rated Ally . | . . . . . . . Total Orders . | . . . . . . . Ally Attacks . | . . . . . . . Total Damage . | . . . . . . . Kills . | . . . . . . . Allies Corrupted . | . . . . . . . Allies Melted . | . . . . . . . Intel | -11 -10 -9 -8 -7 -7 -6 ------- Run | Yrd Mat Mat Mat Fac DSF Fac Active Infowar (turns) 1577 | . 717 311 120 36 194 199 IFF 2 | . . . . . . 2 Structural 838 | . . 289 120 36 194 199 T.N.C. 1012 | . 717 295 . . . . Robot Analysis Total . | . . . . . . . Derelict Logs Recovered . | . . . . . . . Drone Launches . | . . . . . . . Drone Recoveries . | . . . . . . . Exploration | -11 -10 -9 -8 -7 -7 -6 ------------- Run | Yrd Mat Mat Mat Fac DSF Fac Turns Passed 2058 | 50 932 311 220 36 194 315 Spaces Moved 2067 | 37 613 470 474 24 113 336 Core 105 | 4 5 . 2 24 13 57 Treads 124 | . 27 . . . 56 41 Legs 535 | 33 502 . . . . . Wheels 126 | . . . . . 44 82 Hover . | . . . . . . . Flight 1177 | . 79 470 472 . . 156 Fastest Speed 26 | 50 37 29 26 100 100 30 Average Speed 71 | 112 113 30 31 145 165 67 Slowest Speed 400 | 120 300 37 112 400 400 160 Overloaded Moves . | . . . . . . . Propulsion Burnouts . | . . . . . . . Robots Hopped 9 | . . 5 . . . 4 Potential Cave-ins . | . . . . . . . Cave-ins Triggered . | . . . . . . . Exploration Rate (%) 40 | 2 87 46 54 1 84 9 Regions Visited 6 Branch Regions . Pre-discovered Areas . | . . . . . . . Known Exits Taken 2 | . 1 . . 1 . . Unknown Exits Taken 3 | 1 . 1 1 . . . Scrap Searched . | . . . . . . . Spaces Dug 6 | . . . 6 . . . Terrain Destroyed 75 | . . 17 6 . . 52 Melee 6 | . . . 6 . . . Projectile . | . . . . . . . AOE 69 | . . 17 . . . 52 Terrain Rammed . | . . . . . . . Walls Destroyed . | . . . . . . . Machines Disabled . | . . . . . . . Actions | -11 -10 -9 -8 -7 -7 -6 --------- Run | Yrd Mat Mat Mat Fac DSF Fac Total 2394 | 43 741 542 525 27 118 398 Wait 64 | . 29 . 2 . . 33 Move 2044 | 36 612 459 473 23 112 329 Hop 8 | . . 5 . . . 3 Pick Up 38 | 2 16 6 11 . . 3 Fast Attach 28 | 5 5 5 2 1 5 5 Attach 19 | . 6 4 5 2 . 2 Detach . | . . . . . . . Swap 11 | . 3 3 4 1 . . Drop 31 | . 10 10 10 . 1 . Fire 121 | . 60 50 8 . . 3 Melee 18 | . . . 10 . . 8 Ram 6 | . . . . . . 6 Kick . | . . . . . . . Crush 6 | . . . . . . 6 Escape Stasis . | . . . . . . . Rewire . | . . . . . . . Trap . | . . . . . . . Miscellaneous . | . . . . . . . Route ------- -11/Scrapyard -10/Materials (discovered 5 exits: *Mat x3 / *Min x2) -9/Materials (discovered 2 exits: *Mat / *Min) -8/Materials -7/Factory -7/DSF -6/Factory History --------- Turn | Location | Event 6 | -11/Scrapyard | Discovered new exit (range 15) 51 | -11/Scrapyard | Entered Materials 52 | -10/Materials | Met a group of wandering Federalists 110 | -10/Materials | Discovered new exit (range 16) 306 | -10/Materials | Build established: Mutant 482 | -10/Materials | Discovered new exit (range 16) 633 | -10/Materials | Discovered new exit (range 3) 957 | -10/Materials | Identified exit to Materials 974 | -10/Materials | Discovered new exit (range 11) 978 | -10/Materials | Discovered exit to Materials (range 15) 978 | -10/Materials | Identified exit to Mines 983 | -10/Materials | Entered another Materials area 983 | -9/Materials | Evolved 2 slots: Propulsion x1, Utility x1 1173 | -9/Materials | Central database locked down 1184 | -9/Materials | Discovered new exit (range 7) 1195 | -9/Materials | Identified exit to Mines 1271 | -9/Materials | Discovered new exit (range 12) 1294 | -9/Materials | Entered another Materials area 1294 | -8/Materials | Evolved 2 slots: Propulsion x1, Utility x1 1448 | -8/Materials | Lost 3 parts (1p2n) 1466 | -8/Materials | Repaired Propulsion Shielding? 1503 | -8/Materials | Discovered new exit (range 16) 1514 | -8/Materials | Entered Factory 1514 | -7/Factory | Evolved 2 slots: Power x1, Utility x1 1541 | -7/Factory | Lost 3 parts (2n1w) 1546 | -7/Factory | Identified exit to DSF 1550 | -7/Factory | Entered DSF 1632 | -7/DSF | Additional patrols routed to DSF 1729 | -7/DSF | Discovered new exit (range 15) 1744 | -7/DSF | Entered Factory 1744 | -6/Factory | Evolved 2 slots: Propulsion x1, Utility x1 1769 | -6/Factory | Lost 5 parts (1p3n1u) 1809 | -6/Factory | Build established: Hacker-Mutant 1838 | -6/Factory | Fabricated Cesium-ion Thruster (x2) 1914 | -6/Factory | Lost 4 parts (1n2u1w) 1939 | -6/Factory | Garrison activated, responded to threat 1957 | -6/Factory | Core integrity fell below 50% 1979 | -6/Factory | Lost 6 parts (3n2u1w) 2012 | -6/Factory | Core integrity fell below 20% 2059 | -6/Factory | Destroyed by Y-54 Guardian with Flak Gun Last Messages --------------- Penetrated by Slug. Slammed into K-01 Serf. Acquired Imp. Medium Treads. System corrupted: Matter fused (-10). Penetrated by Slug. Acquired Fission Core. Penetrated by Slug. TF Node disabled. Imp. Sensor Array tumbles out of TF Node. Imp. Signal Interpreter tumbles out of TF Node. Slug penetrates P-60 Hacker. P-60 Hacker destroyed. Slug penetrates Wall. System corrupted: Matter fused (-8). Slammed into G-50 Soldier. Imp. Medium Treads destroyed. Fission Core destroyed. Slammed into G-50 Soldier. Hacking Suite destroyed. Slammed into G-50 Soldier. Map ----- +----------------------------------------------------+ | ???????????#"""" / #???????????## | | ???????????#"""" # ######## ########????# | | ???????????#"""" # #??????# # ###### | | ???????????# # #??????# #""" ###### | | ???????????######## #??????# #""" ## | | ??????????????????# #??????# #""" ## ##+ # | | ??????????????????#%#??????# # ! ## ## | | ??????????????????#"###????# # #? ## | | ??????????????????# !#????# #####+## # | | ??????????????????#! #????# " # | | ??????????????????# !#????####### ## # | | ??????????????????# #??????????# #??### | | ??????????????????# #??????????# #???## ] | | ??????????????????# #??????????# #???## ]] = | | ??????????????????# #??????????# ###### = | | ?????????????????###"###?????????+ + = | | ?????????????????# #?????????# ^ #### | | ?????????????????# ! ######/#??# #?## | | ?????????????????# ! #??# #?########""" | | ?????????????????# ###### #?### # # | | ?????????????????# #??????? ???????? # # | | ??????????????######+######???"" ???????? # # | | ??????????????# #??"T ??????? # # | | ??????????????# h m #??""" #??????? #?? | | ??????????????#! """"""Y#?? #??????? ?? | | ??????????????# """"""@#?? #??????? ?? | | ??????????????# """"""g#??? #???????? ?? | | ??????????????# """"""g#?? #???????? ?? | | ??????????????# #?? #???????? ?? | | ??????????????#############???? #????????#?? | | ????????????????????????????????? ???????????? | | ?????????????????????????????????????????????????? | | ?????????????????????????????????????????????????? | | ?????????????????????????????????????????????????? | | ?????????????????????????????????????????????????? | | ?????????????????????????????????????????????????? | | ?????????????????????????????????????????????????? | | ?????????????????????????????????????????????????? | | ?????????????????????????????????????????????????? | | ?????????????????????????????????????????????????? | | ?????????????????????????????????????????????????? | | ?????????????????????????????????????????????????? | | ?????????????????????????????????????????????????? | | ?????????????????????????????????????????????????? | | ?????????????????????????????????????????????????? | | ?????????????????????????????????????????????????? | | ?????????????????????????????????????????????????? | | ?????????????????????????????????????????????????? | | ?????????????????????????????????????????????????? | | ?????????????????????????????????????????????????? | +----------------------------------------------------+ Best States ------------- Heat Dissipation 37 Energy Generation 26 Energy Capacity 340 Matter Stores 300 Matter Capacity 300 Sight Range 16 Terrain Scan Density 10 Additional Mass Support 6 Armor Coverage 150 Propulsion Shielding 33 Evasion (%) 64 Recoil Reduction 2 Offensive Hacking 20 Defensive Hacking 10 Item Schematics ----------------- Imp. Flight Unit | -9/Materials | Scanalyzed Cesium-ion Thruster | -9/Materials | Scanalyzed Propulsion Shielding | -9/Materials | Scanalyzed Robot Schematics ------------------ None Fabricated ------------ Cesium-ion Thruster | x2 | -6/Factory Repaired ---------- Propulsion Shielding | 24% | -8/Materials Studied --------- None Alien Tech Used ----------------- None Achievements -------------- Junior Dev Oops That Tickles Window Shopping Challenges ------------ None Game ------ Seed VisualMetaCalibrator Manual? 0 Play Time 00:52:41 Cumulative 8.7 hours Start 2026.09.13 @ 12:34:32 End 2026.09.13 @ 13:29:01 Sessions 1 Manual Loads 0 Difficulty Rogue Special Mode None Game No. 6 Rogue 6 Adventurer 0 Explorer 0 Win Type - Total 0 Types 0/0/0/0/0/0/0/0/0/0 Lore% 9 Gallery% 11 Achievement% 14 Wizard Run 0 Options --------- Layout 1 ASCII 0 Keyboard 0 Movement Mouse Keybinds 0 Fullscreen 1 Font 24/Smallcaps Map View 50x35 Zoom Use 0% Tactical HUD 0 Map Filters NONE Filters NONE Steam 1 RUN: 5eaa9012-6e73-4d51-b9f4-777db1b2a27b